[Event "Portuguese-ch U10-12 2022"]
[Site "Fatima"]
[Date "2022.04.11"]
[Round "2.2"]
[White "Pinto, Jose Joao Meireles A"]
[Black "De Sousa Silva, Lucas Jose"]
[Result "0-1"]
[ECO "D00"]
[WhiteElo "1288"]
[BlackElo "1656"]
[Annotator "NA RC"]
[PlyCount "84"]
[EventDate "2022.04.10"]
[EventType "swiss"]
[EventCountry "POR"]
[SourceTitle "playchess.com"]
[Source "ChessBase"]
[SourceQuality "1"]
[TimeControl "5400+30"]

1. d4 {[%emt 0:00:01]} d5 {[%emt 0:00:05]} 2. Bf4 {[%emt 0:00:04]} c5 {[%emt 0:00:09]} 3. e3 {[%emt 0:00:05]} Nc6 {[%emt 0:00:24]} 4. c3 {[%emt 0:00:34]} Bf5 {[%emt 0:00:33]} 5. Bd3 {[%emt 0:00:11]} Bxd3 {[%emt 0:03:11]} 6. Qxd3 {[%emt 0:00:43]} e6 {[%emt 0:00:21]} 7. Nf3 {[%emt 0:01:44]} Nf6 {[%emt 0:00:31]} 8. Nbd2 {[%emt 0:06:38]} Be7 {[%emt 0:02:52]} 9. O-O {[%emt 0:06:47]} Nh5 {[%emt 0:06:09]} 10. Rfe1 {[%emt 0:16:24]} cxd4 {[%emt 0:04:39]} 11. Nxd4 {[%emt 0:11:04]} Bf6 {[%emt 0:05:53]} 12. Nxc6 {[%emt 0:04:28]} bxc6 {[%emt 0:00:08]} 13. Bg3 {[%emt 0:03:52]} O-O {[%emt 0:01:45]} 14. Qe2 {[%emt 0:01:14]} Nxg3 {[%emt 0:03:03]} 15. hxg3 {[%emt 0:00:16]} Rb8 {[%emt 0:02:00]} 16. Rab1 {[%emt 0:03:13]} Qa5 {[%emt 0:00:36]} 17. b4 {[%emt 0:07:29]} Qxa2 {[%emt 0:02:43]} 18. Ra1 {[%emt 0:00:56]} Qb2 {[%emt 0:01:01]} 19. Rab1 {[%emt 0:13:48]} Qxc3 {[%emt 0:02:50]} 20. Rec1 {[%emt 0:01:52]} Qa3 {[%emt 0:02:44]} 21. Rxc6 {[%emt 0:02:22]} Rxb4 {[%emt 0:00:46]} 22. Rxb4 {[%emt 0:02:46]} Qxb4 {[%emt 0:00:07]} 23. Ra6 {[%emt 0:01:49]} Qb7 {[%emt 0:02:50]} 24. Nf3 {[%emt 0:02:37]} Rc8 {[%emt 0:01:47]} 25. Qa2 {[%emt 0:00:33]} Rc1+ {[%emt 0:01:43]} 26. Kh2 {[%emt 0:00:18]} Ra1 {[%emt 0:00:09]} 27. Qc2 {[%emt 0:02:28]} Rxa6 {[%emt 0:01:17]} 28. g4 {[%emt 0:00:42]} Rc6 {[%emt 0:00:11]} 29. Qa4 {[%emt 0:00:25]} h6 {[%emt 0:00:37]} 30. Qf4 {[%emt 0:01:07]} Qc7 {[%emt 0:00:11]} 31. g5 {[%emt 0:00:27]} hxg5 {[%emt 0:00:27]} 32. Qxc7 {[%emt 0:00:17]} Rxc7 {[%emt 0:00:05]} 33. Nd2 {[%emt 0:00:24]} a5 {[%emt 0:00:28]} 34. Nb3 {[%emt 0:00:29]} a4 {[%emt 0:00:14]} 35. Na5 {[%emt 0:00:04]} a3 {[%emt 0:00:10]} 36. f3 {[%emt 0:00:28]} a2 {[%emt 0:00:06]} 37. Nb3 {[%emt 0:00:05]} Rb7 {[%emt 0:00:11]} 38. Nc5 {[%emt 0:00:20]} Rb2 {[%emt 0:00:38]} 39. Nb3 {[%emt 0:00:18]} Rxb3 {[%emt 0:00:13]} 40. e4 {[%emt 0:00:19]} dxe4 {[%emt 0:00:08]} 41. g4 {[%emt 0:00:31]} a1=Q {[%emt 0:00:17]} 42. f4 {[%emt 0:00:21]} Qa2+ {[%emt 0:00:08]} 0-1

[Event "Portuguese-ch U10-12 2022"]
[Site "Fatima"]
[Date "2022.04.11"]
[Round "2.3"]
[White "Da Silva, Daniel Leite"]
[Black "Nogueira, Rafael Calade"]
[Result "1-0"]
[ECO "B12"]
[WhiteElo "2023"]
[BlackElo "1263"]
[Annotator "RC"]
[PlyCount "115"]
[EventDate "2022.04.10"]
[EventType "swiss"]
[EventCountry "POR"]
[SourceTitle "playchess.com"]
[Source "ChessBase"]
[SourceQuality "1"]
[TimeControl "5400+30"]

1. e4 {[%emt 0:02:24]} c6 {[%emt 0:00:43]} 2. d4 {[%emt 0:00:15]} d5 {[%emt 0:00:11]} 3. e5 {[%emt 0:00:05]} Bf5 {[%emt 0:00:25]} 4. h4 {[%emt 0:00:15]} h6 {[%emt 0:00:32]} 5. g4 {[%emt 0:00:36]} Bh7 {[%emt 0:01:28]} 6. Bd3 {[%emt 0:00:19]} Bxd3 {[%emt 0:00:40]} 7. Qxd3 {[%emt 0:00:08]} e6 {[%emt 0:00:39]} 8. Be3 {[%emt 0:02:18]} Nd7 {[%emt 0:01:57]} 9. Nd2 {[%emt 0:00:46]} Qb6 {[%emt 0:01:57]} 10. Qb3 {[%emt 0:01:26]} c5 {[%emt 0:04:26]} 11. c3 {[%emt 0:03:33]} Qxb3 {[%emt 0:06:34]} 12. Nxb3 {[%emt 0:04:39]} cxd4 {[%emt 0:01:14]} 13. Bxd4 {[%emt 0:00:25]} Ne7 {[%emt 0:01:19]} 14. f4 {[%emt 0:13:49]} b6 {[%emt 0:11:47]} 15. h5 {[%emt 0:15:16]} Nc6 {[%emt 0:06:20]} 16. Nf3 {[%emt 0:05:06]} Nc5 {[%emt 0:09:17]} 17. Ke2 {[%emt 0:06:09]} Ne4 {[%emt 0:05:08]} 18. Rh3 {[%emt 0:03:35]} Bc5 {[%emt 0:04:06]} 19. Nfd2 {[%emt 0:11:47]} Nxd2 {[%emt 0:06:04]} 20. Kxd2 {[%emt 0:00:49]} Bxd4 {[%emt 0:01:30]} 21. Nxd4 {[%emt 0:01:37]} Nxd4 {[%emt 0:01:23]} 22. cxd4 {[%emt 0:00:09]} Rc8 {[%emt 0:00:45]} 23. Rc1 {[%emt 0:00:37]} Rxc1 {[%emt 0:02:46]} 24. Kxc1 {[%emt 0:01:04]} Kd7 {[%emt 0:00:28]} 25. Ra3 {[%emt 0:05:37]} Rc8+ {[%emt 0:02:15]} 26. Kd2 {[%emt 0:00:23]} a5 {[%emt 0:01:23]} 27. Rc3 {[%emt 0:05:07]} Rxc3 {[%emt 0:08:56]} 28. bxc3 {[%emt 0:02:36]} Kc6 {[%emt 0:02:05]} 29. f5 {[%emt 0:02:06]} exf5 {[%emt 0:07:49]} 30. gxf5 {[%emt 0:00:29]} b5 {[%emt 0:01:12]} 31. Kc2 {[%emt 0:03:22]} Kc7 {[%emt 0:03:13]} 32. Kd3 {[%emt 0:04:20]} Kc6 {[%emt 0:01:30]} 33. Ke3 {[%emt 0:02:16]} Kd7 {[%emt 0:00:42]} 34. Kf3 {[%emt 0:01:12]} Ke7 {[%emt 0:01:49]} 35. Kf4 {[%emt 0:00:11]} Kd7 {[%emt 0:01:54]} 36. Kf3 {[%emt 0:02:21]} Ke7 {[%emt 0:00:29]} 37. Ke2 {[%emt 0:00:05]} Kd7 {[%emt 0:00:17]} 38. Kd3 {[%emt 0:00:17]} Kc6 {[%emt 0:01:00]} 39. Kc2 {[%emt 0:00:34]} Kc7 {[%emt 0:00:14]} 40. Kb3 {[%emt 0:00:27]} Kb7 {[%emt 0:01:22]} 41. a4 {[%emt 0:00:54]} Kb6 {[%emt 0:00:30]} 42. e6 {[%emt 0:01:18]} fxe6 {[%emt 0:00:38]} 43. fxe6 {[%emt 0:00:04]} bxa4+ {[%emt 0:00:05]} 44. Kxa4 {[%emt 0:00:07]} Kc6 {[%emt 0:00:24]} 45. Kxa5 {[%emt 0:00:20]} Kd6 {[%emt 0:00:02]} 46. Kb6 {[%emt 0:00:22]} Kxe6 {[%emt 0:00:02]} 47. Kc6 {[%emt 0:00:17]} g6 {[%emt 0:01:56]} 48. hxg6 {[%emt 0:00:04]} h5 {[%emt 0:00:07]} 49. g7 {[%emt 0:00:04]} Kf7 {[%emt 0:00:15]} 50. g8=Q+ {[%emt 0:00:15]} Kxg8 {[%emt 0:00:02]} 51. Kxd5 {[%emt 0:00:08]} h4 {[%emt 0:00:24]} 52. Ke4 {[%emt 0:00:04]} Kf7 {[%emt 0:00:08]} 53. Kf4 {[%emt 0:00:05]} Ke6 {[%emt 0:00:14]} 54. c4 {[%emt 0:00:10]} h3 {[%emt 0:01:16]} 55. Kg3 {[%emt 0:00:06]} Kf5 {[%emt 0:00:02]} 56. c5 {[%emt 0:00:22]} Ke6 {[%emt 0:00:48]} 57. Kxh3 {[%emt 0:00:12]} Kd5 {[%emt 0:00:04]} 58. Kg4 {[%emt 0:00:10]} 1-0

[Event "Portuguese-ch U10-12 2022"]
[Site "Fatima"]
[Date "2022.04.11"]
[Round "2.4"]
[White "Frolov, Ilya"]
[Black "Cymbron, Victoria"]
[Result "1-0"]
[ECO "B10"]
[WhiteElo "1271"]
[BlackElo "1494"]
[Annotator "NA RC"]
[PlyCount "125"]
[EventDate "2022.04.10"]
[EventType "swiss"]
[EventCountry "POR"]
[SourceTitle "playchess.com"]
[Source "ChessBase"]
[SourceQuality "1"]
[TimeControl "5400+30"]

1. e4 {[%emt 0:00:01]} c6 {[%emt 0:00:05]} 2. Nc3 {[%emt 0:00:05]} d5 {[%emt 0:00:04]} 3. Qf3 {[%emt 0:00:01]} dxe4 {[%emt 0:02:01]} 4. Nxe4 {[%emt 0:00:03]} Nf6 {[%emt 0:00:16]} 5. Bc4 {[%emt 0:00:01]} Nbd7 {[%emt 0:02:12]} 6. d4 {[%emt 0:00:50]} Nb6 {[%emt 0:02:11]} 7. Nxf6+ {[%emt 0:01:25]} exf6 {[%emt 0:00:14]} 8. Qe3+ {[%emt 0:00:53]} Be7 {[%emt 0:00:52]} 9. Bd3 {[%emt 0:00:12]} Be6 {[%emt 0:02:29]} 10. Ne2 {[%emt 0:01:36]} Qd7 {[%emt 0:01:26]} 11. f3 {[%emt 0:01:13]} Nd5 {[%emt 0:01:20]} 12. Qf2 {[%emt 0:00:08]} Nb4 {[%emt 0:01:53]} 13. Nf4 {[%emt 0:01:52]} Nxd3+ {[%emt 0:00:44]} 14. Nxd3 {[%emt 0:00:02]} O-O-O {[%emt 0:01:19]} 15. Be3 {[%emt 0:05:00]} Rhe8 {[%emt 0:03:14]} 16. O-O {[%emt 0:00:28]} Bc4 {[%emt 0:08:33]} 17. Rfd1 {[%emt 0:01:48]} Bd6 {[%emt 0:01:04]} 18. b3 {[%emt 0:03:14]} Bxd3 {[%emt 0:00:23]} 19. Rxd3 {[%emt 0:00:06]} Qc7 {[%emt 0:00:10]} 20. g3 {[%emt 0:10:25]} f5 {[%emt 0:05:16]} 21. f4 {[%emt 0:02:27]} Re4 {[%emt 0:02:42]} 22. d5 {[%emt 0:06:03]} Rde8 {[%emt 0:00:53]} 23. dxc6 {[%emt 0:06:20]} Qxc6 {[%emt 0:09:09]} 24. Rad1 {[%emt 0:02:35]} Rxe3 {[%emt 0:02:35]} 25. Rxd6 {[%emt 0:02:25]} Qf3 {[%emt 0:02:24]} 26. Qxf3 {[%emt 0:02:53]} Rxf3 {[%emt 0:00:12]} 27. R6d3 {[%emt 0:06:02]} Rxd3 {[%emt 0:01:02]} 28. Rxd3 {[%emt 0:00:02]} Re2 {[%emt 0:00:28]} 29. Rc3+ {[%emt 0:00:54]} Kd7 {[%emt 0:00:50]} 30. a4 {[%emt 0:03:04]} f6 {[%emt 0:02:49]} 31. Rc4 {[%emt 0:09:52]} Re4 {[%emt 0:01:21]} 32. Rc3 {[%emt 0:07:34]} g5 {[%emt 0:00:36]} 33. Rf3 {[%emt 0:02:23]} Ke6 {[%emt 0:00:11]} 34. Kf2 {[%emt 0:01:16]} h5 {[%emt 0:03:48]} 35. Re3 {[%emt 0:00:36]} Rxe3 {[%emt 0:07:46]} 36. Kxe3 {[%emt 0:00:03]} Kd5 {[%emt 0:00:22]} 37. Kd3 {[%emt 0:00:52]} a5 {[%emt 0:02:58]} 38. c3 {[%emt 0:05:13]} Kc5 {[%emt 0:01:16]} 39. Kc2 {[%emt 0:01:48]} b6 {[%emt 0:01:36]} 40. Kd3 {[%emt 0:02:51]} g4 {[%emt 0:03:25]} 41. Ke3 {[%emt 0:01:32]} Kd5 {[%emt 0:00:27]} 42. Kf2 {[%emt 0:03:18]} Ke4 {[%emt 0:01:07]} 43. Ke2 {[%emt 0:02:23]} Kd5 {[%emt 0:01:06]} 44. Kd2 {[%emt 0:02:06]} Kd6 {[%emt 0:04:51]} 45. b4 {[%emt 0:00:47]} Kc6 {[%emt 0:01:19]} 46. Kd3 {[%emt 0:01:20]} Kd7 {[%emt 0:01:31]} 47. Kd4 {[%emt 0:03:45]} Kd6 {[%emt 0:00:34]} 48. Kc4 {[%emt 0:00:05]} Kc6 {[%emt 0:00:18]} 49. Kd3 {[%emt 0:01:11]} Kd7 {[%emt 0:00:57]} 50. Ke3 {[%emt 0:01:10]} Kc6 {[%emt 0:00:25]} 51. Kd3 {[%emt 0:01:08]} Kd7 {[%emt 0:00:08]} 52. bxa5 {[%emt 0:00:48]} bxa5 {[%emt 0:00:22]} 53. Kd4 {[%emt 0:00:48]} Kd6 {[%emt 0:00:47]} 54. c4 {[%emt 0:00:18]} Kc6 {[%emt 0:00:27]} 55. c5 {[%emt 0:00:12]} Kc7 {[%emt 0:00:05]} 56. Kd5 {[%emt 0:00:13]} Kd7 {[%emt 0:00:10]} 57. c6+ {[%emt 0:00:25]} Kc7 {[%emt 0:00:16]} 58. Kc5 {[%emt 0:00:02]} Kc8 {[%emt 0:00:24]} 59. Kb6 {[%emt 0:00:14]} Kb8 {[%emt 0:00:17]} 60. Kxa5 {[%emt 0:00:02]} Kc7 {[%emt 0:00:23]} 61. Kb5 {[%emt 0:00:02]} Kc8 {[%emt 0:00:32]} 62. a5 {[%emt 0:00:15]} Kc7 {[%emt 0:00:08]} 63. a6 {[%emt 0:00:29]} 1-0

[Event "Portuguese-ch U10-12 2022"]
[Site "Fatima"]
[Date "2022.04.11"]
[Round "2.5"]
[White "Albuquerque, Eduardo Ferreira"]
[Black "Tarelho, Bruna Silva"]
[Result "1-0"]
[ECO "D11"]
[WhiteElo "1828"]
[BlackElo "1187"]
[Annotator "NA RC"]
[PlyCount "75"]
[EventDate "2022.04.10"]
[EventType "swiss"]
[EventCountry "POR"]
[SourceTitle "playchess.com"]
[Source "ChessBase"]
[SourceQuality "1"]
[TimeControl "5400+30"]

{[%evp 8,47,14,0,32767,32767,0,32767,22,0,6,-6,-3,-20,-18,-22,32767,-21,-20,-28,-16,-42,-31,-43,-26,-65,-16,-76,0,32767,261,272,291,270,360,32767,366,377,368,373,429,418]} 1. d4 {[%emt 0:00:03]} d5 {[%emt 0:00:11]} 2. c4 {[%emt 0:00:43]} c6 {[%emt 0:00:12]} 3. Nf3 {[%emt 0:00:32]} Nf6 {[%emt 0:00:53]} 4. g3 {[%emt 0:02:35]} Bg4 {[%emt 0:00:21]} 5. Ne5 {[%emt 0:02:57]} Bh5 {[%emt 0:01:25]} 6. Bg2 {[%emt 0:01:14]} e6 {[%emt 0:02:11]} 7. O-O {[%emt 0:05:10]} Be7 {[%emt 0:04:26]} 8. Nc3 {[%emt 0:06:20]} Nbd7 {[%emt 0:04:34]} 9. Nxd7 {[%emt 0:01:22]} Qxd7 {[%emt 0:00:44]} 10. cxd5 {[%emt 0:18:03]} exd5 {[%emt 0:01:54]} 11. Bf4 {[%emt 0:03:09]} O-O {[%emt 0:05:05]} 12. Qb3 {[%emt 0:03:12]} h6 {[%emt 0:10:09]} 13. h3 {[%emt 0:04:13]} Rfe8 {[%emt 0:06:06]} 14. g4 {[%emt 0:00:56]} Bg6 {[%emt 0:00:23]} 15. e3 {[%emt 0:03:18]} Nh7 {[%emt 0:09:14]} 16. Rad1 {[%emt 0:07:57]} Ng5 {[%emt 0:04:20]} (16... h5 $1 $15 {is superior.}) 17. Rfe1 $17 {[%emt 0:05:12]} (17. Be5 $11 {keeps the balance.}) 17... Ne6 {[%emt 0:02:54]} (17... h5 $15 18. f3 f5) 18. Bg3 {[%emt 0:00:43]} f5 $2 {[%emt 0:03:12] [#]} (18... h5 $11) 19. gxf5 $1 {[%emt 0:05:23]} Bxf5 {[%emt 0:01:18]} 20. e4 {[%emt 0:01:28]} dxe4 {[%emt 0:03:12]} 21. Bxe4 {[%emt 0:06:28]} Bxe4 {[%emt 0:06:00]} 22. Rxe4 {[%emt 0:00:12]} ({Worse is} 22. Nxe4 Kh8 $11) 22... Bf6 {[%emt 0:04:29]} 23. Rde1 {[%emt 0:01:42]} Kf7 {[%emt 0:01:51] [#]} 24. Rxe6 $1 {[%emt 0:02:07]} Rxe6 {[%emt 0:06:53]} 25. Rxe6 {[%emt 0:00:07]} Kg6 {[%emt 0:00:23]} 26. Ne2 {[%emt 0:04:02]} b6 {[%emt 0:05:30]} 27. Nf4+ {[%emt 0:00:51]} Kh7 {[%emt 0:00:23]} 28. Qc2+ {[%emt 0:00:50]} Kg8 {[%emt 0:01:11]} 29. Qc4 {[%emt 0:02:40]} Kh7 {[%emt 0:01:30]} 30. Nh5 {[%emt 0:07:11]} b5 {[%emt 0:07:00]} 31. Qd3+ {[%emt 0:01:17]} Kg8 {[%emt 0:02:10]} 32. Rxf6 {[%emt 0:00:21]} Re8 {[%emt 0:02:02]} 33. Rxh6 {[%emt 0:01:51]} Re1+ {[%emt 0:00:40]} 34. Kh2 {[%emt 0:00:14]} Rh1+ {[%emt 0:02:09]} 35. Kxh1 {[%emt 0:00:14]} Qxh3+ {[%emt 0:00:02]} 36. Kg1 {[%emt 0:00:10]} gxh6 {[%emt 0:00:12]} 37. Qg6+ {[%emt 0:00:21]} Kf8 {[%emt 0:00:10]} 38. Bd6# {[%emt 0:00:08]} 1-0

[Event "Portuguese-ch U10-12 2022"]
[Site "Fatima"]
[Date "2022.04.11"]
[Round "2.7"]
[White "Moldovan, Lucas"]
[Black "Marques, Joao Goncalo B A"]
[Result "1-0"]
[ECO "C54"]
[WhiteElo "1583"]
[BlackElo "1418"]
[Annotator "NA RC"]
[PlyCount "75"]
[EventDate "2022.04.10"]
[EventType "swiss"]
[EventCountry "POR"]
[SourceTitle "playchess.com"]
[Source "ChessBase"]
[SourceQuality "1"]
[TimeControl "5400+30"]

1. e4 {[%emt 0:00:07]} e5 {[%emt 0:00:06]} 2. Nf3 {[%emt 0:00:13]} Nc6 {[%emt 0:00:05]} 3. Bc4 {[%emt 0:00:24]} Bc5 4. c3 {[%emt 0:00:33]} Nf6 {[%emt 0:00:17]} 5. d4 {[%emt 0:00:35]} exd4 {[%emt 0:00:05]} 6. e5 {[%emt 0:00:09]} d5 {[%emt 0:00:06]} 7. Bb5 {[%emt 0:01:01]} Ne4 {[%emt 0:00:26]} 8. cxd4 {[%emt 0:02:52]} Bb6 {[%emt 0:00:20]} 9. Nc3 {[%emt 0:00:46]} O-O {[%emt 0:00:52]} 10. Bxc6 {[%emt 0:01:33]} bxc6 {[%emt 0:00:23]} 11. O-O {[%emt 0:00:06]} Bg4 {[%emt 0:00:32]} 12. Qc2 {[%emt 0:04:32]} Bf5 {[%emt 0:01:05]} 13. Qa4 {[%emt 0:03:05]} Qd7 {[%emt 0:05:10]} 14. Nxe4 {[%emt 0:03:51]} Bxe4 {[%emt 0:02:13]} 15. Nd2 {[%emt 0:00:59]} Bf5 {[%emt 0:06:21]} 16. Nb3 {[%emt 0:04:16]} f6 {[%emt 0:12:50]} 17. Bf4 {[%emt 0:02:26]} Rae8 {[%emt 0:03:22]} 18. Rfc1 {[%emt 0:03:40]} Re6 {[%emt 0:10:35]} 19. Nc5 {[%emt 0:00:18]} Bxc5 {[%emt 0:00:20]} 20. Rxc5 {[%emt 0:00:12]} fxe5 {[%emt 0:02:04]} 21. Bxe5 {[%emt 0:00:16]} Rg6 {[%emt 0:01:17]} 22. Bg3 {[%emt 0:06:28]} Rb8 {[%emt 0:07:09]} 23. b3 {[%emt 0:02:41]} Re8 {[%emt 0:04:18]} 24. Qxa7 {[%emt 0:03:03]} Rge6 {[%emt 0:01:54]} 25. f3 {[%emt 0:02:46]} R8e7 {[%emt 0:01:45]} 26. Qa5 {[%emt 0:05:03]} Qe8 {[%emt 0:13:12]} 27. Rac1 {[%emt 0:04:09]} Qd7 {[%emt 0:07:40]} 28. Qa8+ {[%emt 0:01:50]} Re8 {[%emt 0:02:20]} 29. Qb7 {[%emt 0:00:19]} Re2 {[%emt 0:05:29]} 30. Qxc6 {[%emt 0:02:22]} Qe7 {[%emt 0:02:44]} 31. Qxd5+ {[%emt 0:03:20]} Be6 {[%emt 0:01:22]} 32. Qb7 {[%emt 0:02:27]} Rxa2 {[%emt 0:01:46]} 33. Qxc7 {[%emt 0:02:53]} Bxb3 {[%emt 0:01:50]} 34. Qxe7 {[%emt 0:01:07]} Rxe7 {[%emt 0:00:05]} 35. Rc8+ {[%emt 0:01:14]} Kf7 {[%emt 0:00:15]} 36. R8c7 {[%emt 0:00:19]} Rxc7 {[%emt 0:00:20]} 37. Rxc7+ {[%emt 0:00:15]} Kf8 {[%emt 0:00:43]} 38. Be5 {[%emt 0:01:14]} 1-0

[Event "Portuguese-ch U10-12 2022"]
[Site "Fatima"]
[Date "2022.04.11"]
[Round "2.8"]
[White "Ferreira da Silva, Rodrigo"]
[Black "Zhang, Xin An"]
[Result "1-0"]
[ECO "B43"]
[WhiteElo "1905"]
[BlackElo "1580"]
[Annotator "RC"]
[PlyCount "41"]
[EventDate "2022.04.10"]
[EventType "swiss"]
[EventCountry "POR"]
[SourceTitle "playchess.com"]
[Source "ChessBase"]
[SourceQuality "1"]
[TimeControl "5400+30"]

1. e4 {[%emt 0:00:22]} c5 {[%emt 0:00:02]} 2. Nf3 {[%emt 0:00:45]} e6 {[%emt 0:00:07]} 3. d4 {[%emt 0:00:07]} cxd4 {[%emt 0:00:04]} 4. Nxd4 {[%emt 0:00:06]} a6 {[%emt 0:00:02]} 5. Nc3 {[%emt 0:00:08]} Qc7 {[%emt 0:00:14]} 6. Bd3 {[%emt 0:00:08]} Bb4 {[%emt 0:00:19]} 7. O-O {[%emt 0:00:12]} Bxc3 {[%emt 0:01:50]} 8. bxc3 {[%emt 0:00:10]} Qxc3 {[%emt 0:00:43]} 9. Rb1 {[%emt 0:00:12]} Ne7 {[%emt 0:02:05]} 10. Bb2 {[%emt 0:00:51]} Qc7 {[%emt 0:00:35]} 11. Qg4 {[%emt 0:02:05]} Ng6 {[%emt 0:01:38]} 12. Nf3 {[%emt 0:00:36]} O-O {[%emt 0:07:04]} 13. Nh4 {[%emt 0:03:23]} Nc6 {[%emt 0:00:49]} 14. Nxg6 {[%emt 0:00:19]} hxg6 {[%emt 0:00:29]} 15. Rbe1 {[%emt 0:02:44]} d5 {[%emt 0:09:51]} 16. exd5 {[%emt 0:00:47]} exd5 {[%emt 0:00:13]} 17. Qg5 {[%emt 0:01:03]} Nb4 {[%emt 0:04:17]} 18. Re7 {[%emt 0:04:51]} Qd6 {[%emt 0:02:57]} 19. Be5 {[%emt 0:01:33]} Qc5 {[%emt 0:02:11]} 20. Bxg6 {[%emt 0:00:43]} Qxe7 {[%emt 0:10:06]} 21. Bh7+ {[%emt 0:00:37]} 1-0

[Event "Portuguese-ch U10-12 2022"]
[Site "Fatima"]
[Date "2022.04.11"]
[Round "3.1"]
[White "Albuquerque, Eduardo Ferreira"]
[Black "Farias, David Nuno M E"]
[Result "1-0"]
[ECO "D70"]
[WhiteElo "1828"]
[BlackElo "1826"]
[Annotator "NA RC"]
[PlyCount "129"]
[EventDate "2022.04.10"]
[EventType "swiss"]
[EventCountry "POR"]
[SourceTitle "playchess.com"]
[Source "ChessBase"]
[SourceQuality "1"]
[TimeControl "5400+30"]

1. d4 {[%emt 0:00:33]} Nf6 {[%emt 0:00:04]} 2. c4 {[%emt 0:00:26]} g6 {[%emt 0:00:05]} 3. Nf3 {[%emt 0:01:00]} Bg7 {[%emt 0:01:19]} 4. g3 {[%emt 0:01:48]} O-O {[%emt 0:00:18]} 5. Bg2 {[%emt 0:00:59]} d5 {[%emt 0:00:21]} 6. cxd5 {[%emt 0:00:38]} Nxd5 {[%emt 0:00:12]} 7. Nc3 {[%emt 0:01:05]} Nb6 {[%emt 0:03:30]} 8. O-O {[%emt 0:14:20]} Nc6 {[%emt 0:02:17]} 9. e3 {[%emt 0:06:16]} Re8 {[%emt 0:03:17]} 10. a3 {[%emt 0:05:04]} a5 {[%emt 0:15:15]} 11. Na4 {[%emt 0:05:14]} Nxa4 {[%emt 0:03:06]} 12. Qxa4 {[%emt 0:01:02]} Bd7 {[%emt 0:02:17]} 13. Qc2 {[%emt 0:01:16]} a4 {[%emt 0:03:57]} 14. Bd2 {[%emt 0:01:41]} Be6 {[%emt 0:09:57]} 15. Rac1 {[%emt 0:03:31]} Bd5 {[%emt 0:03:48]} 16. Bc3 {[%emt 0:02:58]} f5 {[%emt 0:05:09]} 17. Nd2 {[%emt 0:02:17]} Bxg2 {[%emt 0:00:58]} 18. Kxg2 {[%emt 0:00:52]} e6 $11 {[%emt 0:05:18]} 19. f3 {[%emt 0:01:46]} Re7 {[%emt 0:03:35]} 20. Rfd1 {[%emt 0:03:17]} Qe8 {[%emt 0:05:39]} 21. Qd3 {[%emt 0:01:13]} Rd7 {[%emt 0:02:55]} 22. Qc4 {[%emt 0:05:19]} Qf7 {[%emt 0:01:12]} 23. Nf1 {[%emt 0:13:08]} e5 {[%emt 0:05:25]} 24. d5 {[%emt 0:01:18]} Na5 {[%emt 0:02:13]} 25. Bxa5 {[%emt 0:02:48]} Rxa5 {[%emt 0:00:06]} 26. e4 {[%emt 0:00:48]} h5 {[%emt 0:05:15]} 27. Qb4 {[%emt 0:02:14]} b6 {[%emt 0:00:44]} 28. Rc6 {[%emt 0:03:07]} f4 {[%emt 0:03:06]} 29. Nd2 {[%emt 0:03:30]} fxg3 30. hxg3 {[%emt 0:00:08]} Ra8 {[%emt 0:01:36]} 31. Nc4 {[%emt 0:01:04]} g5 {[%emt 0:01:00]} 32. d6 g4 {[%emt 0:02:30]} 33. Rf1 {[%emt 0:04:40]} Qe6 {[%emt 0:05:54]} 34. Rxc7 {[%emt 0:00:56]} Rf8 {[%emt 0:03:24]} 35. Rxd7 {[%emt 0:02:38]} Qxd7 {[%emt 0:01:36]} 36. Nxb6 {[%emt 0:01:29]} gxf3+ {[%emt 0:00:07]} 37. Rxf3 {[%emt 0:01:11]} Qg4 {[%emt 0:00:11]} 38. Rxf8+ {[%emt 0:00:16]} Bxf8 {[%emt 0:00:01]} 39. Qc4+ {[%emt 0:00:30]} Kg7 {[%emt 0:00:19]} 40. d7 {[%emt 0:01:09]} Be7 {[%emt 0:00:06]} 41. Qd3 {[%emt 0:01:53]} Kg6 {[%emt 0:02:16]} 42. Nc4 {[%emt 0:02:14]} Qg5 {[%emt 0:00:21]} 43. Ne3 {[%emt 0:02:01]} Bd8 {[%emt 0:00:37]} 44. Nf5 {[%emt 0:01:10]} Kh7 {[%emt 0:00:41]} 45. Qd5 {[%emt 0:01:24]} Qg4 {[%emt 0:00:25]} 46. Qf7+ {[%emt 0:00:29]} Kh8 {[%emt 0:00:00]} 47. Qc4 {[%emt 0:00:45]} Kh7 {[%emt 0:01:02]} 48. Qf7+ {[%emt 0:00:32]} Kh8 {[%emt 0:00:02]} 49. Qc4 {[%emt 0:00:31]} Kh7 {[%emt 0:00:28]} 50. Qd3 {[%emt 0:00:21]} Kg6 {[%emt 0:00:47]} 51. Qf3 {[%emt 0:00:38]} Qg5 {[%emt 0:00:14]} 52. Nh4+ {[%emt 0:00:27]} Kg7 {[%emt 0:00:08]} 53. Qf2 {[%emt 0:00:32]} Qg4 {[%emt 0:00:49]} 54. Nf5+ {[%emt 0:00:19]} Kg6 {[%emt 0:00:09]} 55. Qc2 {[%emt 0:00:38]} Kh7 {[%emt 0:01:05]} 56. Qd3 {[%emt 0:00:32]} Kg6 {[%emt 0:00:52]} 57. Ne3 {[%emt 0:00:32]} Qg5 {[%emt 0:00:30]} 58. Nd5 {[%emt 0:00:27]} Qg4 {[%emt 0:00:28]} 59. Nb4 {[%emt 0:00:24]} Kh7 {[%emt 0:00:32]} 60. Nc6 {[%emt 0:00:23]} Qg5 {[%emt 0:00:28]} 61. Nxd8 {[%emt 0:00:19]} Qxd8 {[%emt 0:00:01]} 62. Qd5 {[%emt 0:00:53]} Kg6 {[%emt 0:00:38]} 63. Qe6+ {[%emt 0:00:23]} Kh7 {[%emt 0:00:15]} 64. Qe8 {[%emt 0:00:32]} Qc7 {[%emt 0:00:06]} 65. d8=Q {[%emt 0:00:27]} 1-0